[Event "NOR-ch Elite 2019"]
[Site "Larvik"]
[Date "2019.07.06"]
[Round "2.6"]
[White "Ranaldi, Lucas"]
[Black "Lie, Kjetil A."]
[Result "1/2-1/2"]
[ECO "E91"]
[WhiteElo "2262"]
[BlackElo "2538"]
[Annotator "ChessBase"]
[PlyCount "53"]
[EventDate "2019.07.05"]
[EventType "swiss"]
[EventCountry "NOR"]
[SourceTitle "playchess.com"]
[Source "ChessBase"]
[SourceQuality "1"]
[TimeControl "40/5400+30:1800+30"]

1. Nf3 {[%emt 0:00:00]} Nf6 {[%emt 0:00:00]} 2. c4 {[%emt 0:00:00]} g6 {[%emt 0:00:20]} 3. Nc3 {[%emt 0:00:02]} Bg7 {[%emt 0:01:06]} 4. e4 {[%emt 0:00:23]} d6 {[%emt 0:00:32]} 5. d4 {[%emt 0:00:21]} O-O {[%emt 0:01:05]} 6. Be2 {[%emt 0:00:07]} Bg4 {[%emt 0:00:26]} 7. Be3 {[%emt 0:00:46]} Nfd7 {[%emt 0:00:31]} 8. Ng1 {[%emt 0:00:11]} Bxe2 {[%emt 0:00:15]} 9. Ngxe2 {[%emt 0:00:06]} c5 {[%emt 0:02:49]} 10. O-O {[%emt 0:00:26]} cxd4 {[%emt 0:07:17]} 11. Nxd4 {[%emt 0:00:25]} Nc6 {[%emt 0:00:27]} 12. Rc1 {[%emt 0:08:25]} Nc5 {[%emt 0:19:31]} 13. b3 {[%emt 0:13:16]} Nxd4 {[%emt 0:13:43]} 14. Bxd4 {[%emt 0:00:10]} Bh6 {[%emt 0:01:23]} 15. Rc2 {[%emt 0:19:32]} Ne6 {[%emt 0:00:17]} 16. Nd5 {[%emt 0:00:19]} Nxd4 {[%emt 0:00:32]} 17. Qxd4 {[%emt 0:00:08]} Bg7 {[%emt 0:00:12]} 18. Qd3 {[%emt 0:00:43]} e6 {[%emt 0:01:50]} 19. Ne3 {[%emt 0:04:25]} Qb6 {[%emt 0:01:17]} 20. Rd2 {[%emt 0:03:01]} Rfd8 {[%emt 0:02:11]} 21. Kh1 {[%emt 0:02:30]} a5 {[%emt 0:11:04]} 22. a4 {[%emt 0:01:02]} Ra6 {[%emt 0:02:02]} 23. f4 {[%emt 0:01:31]} Re8 {[%emt 0:11:49]} 24. Re2 {[%emt 0:17:58]} Qd4 {[%emt 0:00:40]} 25. Qxd4 {[%emt 0:01:18]} Bxd4 {[%emt 0:00:08]} 26. Rd1 {[%emt 0:01:04]} Bc5 {[%emt 0:04:29]} 27. g3 {[%emt 0:01:38]} 1/2-1/2

[Event "NOR-ch Elite 2019"]
[Site "Larvik"]
[Date "2019.07.06"]
[Round "2.7"]
[White "Andersen, Alf Roger"]
[Black "Haug, Johannes"]
[Result "0-1"]
[ECO "A21"]
[WhiteElo "2149"]
[BlackElo "2431"]
[Annotator "NA"]
[PlyCount "96"]
[EventDate "2019.07.05"]
[EventType "swiss"]
[EventCountry "NOR"]
[SourceTitle "playchess.com"]
[Source "ChessBase"]
[SourceQuality "1"]
[TimeControl "40/5400+30:1800+30"]

1. c4 {[%emt 0:00:00]} e5 {[%emt 0:00:00]} 2. Nc3 {[%emt 0:00:00]} Bb4 {[%emt 0:01:03]} 3. g3 {[%emt 0:00:08]} Bxc3 {[%emt 0:01:02]} 4. dxc3 {[%emt 0:00:10]} d6 {[%emt 0:00:24]} 5. Bg2 {[%emt 0:02:22]} Ne7 {[%emt 0:03:12]} 6. Nf3 {[%emt 0:06:50]} Nbc6 {[%emt 0:01:00]} 7. e4 {[%emt 0:03:49]} Be6 {[%emt 0:03:14]} 8. Nd2 {[%emt 0:03:17]} Qd7 {[%emt 0:03:03]} 9. h3 {[%emt 0:01:57]} O-O {[%emt 0:20:42]} 10. Qe2 {[%emt 0:03:19]} a6 {[%emt 0:08:32]} 11. Nf1 {[%emt 0:06:44]} Rab8 {[%emt 0:05:37]} 12. Ne3 {[%emt 0:03:38]} b5 {[%emt 0:00:06]} 13. Nd5 {[%emt 0:05:51]} Na5 {[%emt 0:08:13]} 14. cxb5 {[%emt 0:06:30]} axb5 {[%emt 0:03:02]} 15. b3 {[%emt 0:00:54]} Nac6 {[%emt 0:04:49]} 16. Be3 {[%emt 0:07:24]} f5 {[%emt 0:04:47]} 17. O-O-O {[%emt 0:18:19]} fxe4 {[%emt 0:02:32]} 18. Bxe4 {[%emt 0:02:23]} Bxd5 {[%emt 0:02:05]} 19. Bxd5+ {[%emt 0:00:17]} Nxd5 {[%emt 0:00:03]} 20. Rxd5 {[%emt 0:00:13]} Ne7 {[%emt 0:02:33]} 21. Rdd1 {[%emt 0:03:03]} c6 {[%emt 0:00:21]} 22. Qg4 {[%emt 0:10:19]} Qxg4 {[%emt 0:04:22]} 23. hxg4 {[%emt 0:00:02]} Nd5 {[%emt 0:00:06]} 24. Rxd5 {[%emt 0:06:14]} cxd5 {[%emt 0:00:14]} 25. Rd1 {[%emt 0:00:09]} Kf7 {[%emt 0:02:37]} 26. Rxd5 {[%emt 0:00:33]} Ke6 {[%emt 0:00:01]} 27. Rd1 {[%emt 0:01:06]} Ra8 {[%emt 0:02:38]} 28. Kb2 {[%emt 0:00:40]} Ra6 {[%emt 0:00:03]} 29. a3 {[%emt 0:04:24]} Rfa8 {[%emt 0:02:42]} 30. Ra1 {[%emt 0:00:08]} Kd5 {[%emt 0:02:41]} 31. f3 {[%emt 0:01:04]} h6 {[%emt 0:00:09]} 32. Rd1+ {[%emt 0:01:49]} Ke6 {[%emt 0:00:12]} 33. Ra1 {[%emt 0:00:05]} Rf8 {[%emt 0:02:09]} 34. Rf1 {[%emt 0:00:07]} Rf7 {[%emt 0:00:05]} 35. b4 {[%emt 0:01:27]} g5 {[%emt 0:07:31]} 36. Kb3 {[%emt 0:00:36]} Ra8 {[%emt 0:01:29]} 37. f4 {[%emt 0:01:50]} gxf4 {[%emt 0:01:13]} 38. gxf4 {[%emt 0:00:04]} Rg8 {[%emt 0:00:16]} 39. Rh1 {[%emt 0:01:08]} exf4 {[%emt 0:01:11]} 40. Rxh6+ {[%emt 0:00:27]} Kd5 {[%emt 0:00:10]} 41. Rh5+ {[%emt 0:12:07]} Kc6 {[%emt 0:02:44]} 42. Bf2 {[%emt 0:03:42]} Rxg4 {[%emt 0:01:18]} 43. c4 {[%emt 0:00:25]} bxc4+ {[%emt 0:03:33]} 44. Kxc4 {[%emt 0:01:00]} Rg2 {[%emt 0:00:20]} 45. b5+ {[%emt 0:00:30]} Kb7 {[%emt 0:01:15]} 46. Bd4 {[%emt 0:00:24]} f3 {[%emt 0:00:43]} 47. Rh1 {[%emt 0:00:53]} f2 {[%emt 0:00:40]} 48. Rf1 {[%emt 0:00:26]} Rf4 {[%emt 0:00:14]} 0-1

[Event "NOR-ch Elite 2019"]
[Site "Larvik"]
[Date "2019.07.06"]
[Round "2.8"]
[White "Vestby-Ellingsen, Mads"]
[Black "Getz, Nicolai"]
[Result "1/2-1/2"]
[ECO "B07"]
[WhiteElo "2335"]
[BlackElo "2377"]
[Annotator "RC"]
[PlyCount "151"]
[EventDate "2019.07.05"]
[EventType "swiss"]
[EventCountry "NOR"]
[SourceTitle "playchess.com"]
[Source "ChessBase"]
[SourceQuality "1"]
[TimeControl "40/5400+30:1800+30"]

1. d4 {[%emt 0:00:00]} d6 {[%emt 0:00:00]} 2. e4 {[%emt 0:00:00]} Nf6 {[%emt 0:00:00]} 3. Nc3 {[%emt 0:00:07]} g6 {[%emt 0:00:00]} 4. Bg5 {[%emt 0:03:15]} Bg7 {[%emt 0:02:58]} 5. Qd2 {[%emt 0:01:14]} h6 {[%emt 0:01:03]} 6. Bh4 {[%emt 0:00:28]} g5 {[%emt 0:08:59]} 7. Bg3 {[%emt 0:00:14]} Nh5 {[%emt 0:00:33]} 8. O-O-O {[%emt 0:02:02]} Nc6 {[%emt 0:01:45]} 9. Nge2 {[%emt 0:06:22]} Bd7 {[%emt 0:09:22]} 10. f3 {[%emt 0:05:14]} Nxg3 {[%emt 0:01:40]} 11. hxg3 {[%emt 0:00:18]} e6 {[%emt 0:07:25]} 12. Kb1 {[%emt 0:15:24]} a6 {[%emt 0:15:58]} 13. d5 {[%emt 0:12:35]} Ne5 {[%emt 0:06:08]} 14. Nd4 {[%emt 0:01:33]} Qf6 {[%emt 0:05:20]} 15. f4 {[%emt 0:15:14]} Ng6 {[%emt 0:02:16]} 16. dxe6 {[%emt 0:05:45]} fxe6 {[%emt 0:01:13]} 17. e5 {[%emt 0:01:07]} dxe5 {[%emt 0:02:50]} 18. fxg5 {[%emt 0:06:55]} hxg5 {[%emt 0:07:25]} 19. Rxh8+ {[%emt 0:00:17]} Bxh8 {[%emt 0:03:21]} 20. Nf3 {[%emt 0:01:11]} O-O-O {[%emt 0:03:30]} 21. Ne4 {[%emt 0:02:14]} Qe7 {[%emt 0:02:25]} 22. Nfxg5 {[%emt 0:00:39]} Bg7 {[%emt 0:05:52]} 23. Bc4 {[%emt 0:02:46]} Nf8 {[%emt 0:01:18]} 24. Qe2 {[%emt 0:05:58]} Bc6 {[%emt 0:03:04]} 25. Rh1 {[%emt 0:06:21]} Bd5 {[%emt 0:00:38]} 26. c3 {[%emt 0:00:41]} Nd7 {[%emt 0:00:52]} 27. Bd3 {[%emt 0:03:05]} Nf6 {[%emt 0:02:32]} 28. Nxf6 {[%emt 0:00:21]} Bxf6 {[%emt 0:00:23]} 29. Ne4 {[%emt 0:00:20]} Kb8 {[%emt 0:01:58]} 30. Rf1 {[%emt 0:01:36]} Bg7 {[%emt 0:00:39]} 31. Bc2 {[%emt 0:00:42]} Qe8 {[%emt 0:01:13]} 32. Ng5 {[%emt 0:01:06]} Qc6 {[%emt 0:00:29]} 33. Rd1 {[%emt 0:00:37]} Rf8 {[%emt 0:00:55]} 34. Ne4 {[%emt 0:00:23]} Qb6 {[%emt 0:00:53]} 35. Qg4 {[%emt 0:00:49]} Bh6 {[%emt 0:00:28]} 36. Qh5 {[%emt 0:00:34]} Qe3 {[%emt 0:00:12]} 37. Qg6 {[%emt 0:00:30]} Bc6 {[%emt 0:02:13]} 38. Nf6 {[%emt 0:00:23]} Qg5 {[%emt 0:00:31]} 39. Qxg5 {[%emt 0:00:28]} Bxg5 {[%emt 0:00:04]} 40. Nd7+ {[%emt 0:00:19]} Bxd7 {[%emt 0:00:04]} 41. Rxd7 {[%emt 0:30:07]} Rf1+ {[%emt 0:02:35]} 42. Rd1 {[%emt 0:00:00]} Rf2 {[%emt 0:02:04]} 43. a4 {[%emt 0:00:00]} Rxg2 {[%emt 0:01:08]} 44. Re1 {[%emt 0:00:00]} Bf6 {[%emt 0:01:34]} 45. Re3 {[%emt 0:00:00]} Rg1+ {[%emt 0:01:32]} 46. Ka2 {[%emt 0:00:00]} Kc8 {[%emt 0:05:24]} 47. Bb3 {[%emt 0:00:00]} Kd7 {[%emt 0:00:27]} 48. Bc2 {[%emt 0:00:00]} Be7 {[%emt 0:01:27]} 49. Rxe5 {[%emt 0:00:00]} Rxg3 {[%emt 0:00:12]} 50. Re2 {[%emt 0:00:00]} Bd6 {[%emt 0:00:39]} 51. Be4 {[%emt 0:00:00]} c6 {[%emt 0:00:07]} 52. Kb3 {[%emt 0:00:00]} Kc7 {[%emt 0:02:04]} 53. Kc2 {[%emt 0:00:00]} Rg1 {[%emt 0:00:20]} 54. Bd3 {[%emt 0:00:00]} e5 {[%emt 0:00:10]} 55. b4 {[%emt 0:00:28]} Kb6 {[%emt 0:02:47]} 56. a5+ {[%emt 0:00:16]} Kc7 {[%emt 0:00:04]} 57. Rh2 {[%emt 0:02:18]} Rg4 {[%emt 0:04:35]} 58. Rh7+ {[%emt 0:01:06]} Kb8 {[%emt 0:00:05]} 59. Rh8+ {[%emt 0:00:13]} Ka7 {[%emt 0:03:05]} 60. Re8 {[%emt 0:00:13]} Rg7 {[%emt 0:01:00]} 61. Re6 {[%emt 0:02:15]} Bc7 {[%emt 0:00:31]} 62. Re8 {[%emt 0:00:51]} Rd7 {[%emt 0:01:51]} 63. Bf5 {[%emt 0:00:51]} Rf7 {[%emt 0:00:48]} 64. Be4 {[%emt 0:00:46]} Bd6 {[%emt 0:01:32]} 65. Re6 {[%emt 0:00:35]} Rd7 {[%emt 0:00:16]} 66. Re8 {[%emt 0:00:34]} Be7 {[%emt 0:01:25]} 67. Bf5 {[%emt 0:00:23]} Rc7 {[%emt 0:00:11]} 68. Rc8 {[%emt 0:00:37]} Rxc8 {[%emt 0:00:02]} 69. Bxc8 {[%emt 0:00:08]} c5 {[%emt 0:01:07]} 70. Kb3 {[%emt 0:01:26]} e4 {[%emt 0:00:16]} 71. Bf5 {[%emt 0:01:50]} e3 {[%emt 0:00:06]} 72. Bd3 {[%emt 0:00:06]} Kb8 {[%emt 0:02:44]} 73. Kc4 {[%emt 0:00:34]} cxb4 {[%emt 0:00:34]} 74. cxb4 {[%emt 0:00:08]} Bd8 {[%emt 0:00:40]} 75. Kd4 {[%emt 0:00:44]} Bg5 {[%emt 0:00:44]} 76. b5 {[%emt 0:00:58]} 1/2-1/2

[Event "NOR-ch Elite 2019"]
[Site "Larvik"]
[Date "2019.07.06"]
[Round "2.9"]
[White "Christiansen, Johan-Sebastian"]
[Black "Moen, Andreas G.R."]
[Result "1-0"]
[ECO "C43"]
[WhiteElo "2548"]
[BlackElo "2322"]
[Annotator "RC"]
[PlyCount "115"]
[EventDate "2019.07.05"]
[EventType "swiss"]
[EventCountry "NOR"]
[SourceTitle "playchess.com"]
[Source "ChessBase"]
[SourceQuality "1"]
[TimeControl "40/5400+30:1800+30"]

1. e4 {[%emt 0:00:00]} e5 {[%emt 0:00:00]} 2. Nf3 {[%emt 0:00:00]} Nf6 {[%emt 0:00:00]} 3. d4 {[%emt 0:00:00]} Nxe4 {[%emt 0:00:00]} 4. Bd3 {[%emt 0:00:08]} d5 {[%emt 0:07:48]} 5. Nxe5 {[%emt 0:00:32]} Nd7 {[%emt 0:00:06]} 6. Nxd7 {[%emt 0:00:25]} Bxd7 {[%emt 0:00:06]} 7. O-O {[%emt 0:00:47]} Bd6 {[%emt 0:07:03]} 8. Nc3 {[%emt 0:02:22]} Nf6 {[%emt 0:11:12]} 9. Bg5 {[%emt 0:21:46]} h6 {[%emt 0:05:06]} 10. Re1+ {[%emt 0:02:33]} Kf8 {[%emt 0:03:29]} 11. Bh4 {[%emt 0:12:54]} c6 {[%emt 0:00:05]} 12. Qf3 {[%emt 0:03:03]} g5 {[%emt 0:05:31]} 13. Bg3 {[%emt 0:00:28]} Bg4 {[%emt 0:02:41]} 14. Qe3 {[%emt 0:02:28]} Bxg3 {[%emt 0:09:45]} 15. Qxg3 {[%emt 0:05:00]} Qb6 {[%emt 0:08:22]} 16. h3 {[%emt 0:14:58]} Qxb2 {[%emt 0:05:48]} 17. Bg6 {[%emt 0:01:19]} Bh5 {[%emt 0:10:28]} 18. Rab1 {[%emt 0:04:13]} Qa3 {[%emt 0:00:04]} 19. Bxh5 {[%emt 0:18:04]} Nxh5 {[%emt 0:01:29]} 20. Qf3 {[%emt 0:00:02]} Nf4 {[%emt 0:03:46]} 21. Rxb7 {[%emt 0:00:35]} Rh7 {[%emt 0:02:50]} 22. Kh2 {[%emt 0:01:01]} Kg8 {[%emt 0:05:14]} 23. Nxd5 {[%emt 0:01:44]} Qxf3 {[%emt 0:00:53]} 24. Ne7+ {[%emt 0:00:03]} Kg7 {[%emt 0:09:09]} 25. gxf3 {[%emt 0:00:03]} Rhh8 {[%emt 0:00:27]} 26. c4 {[%emt 0:02:10]} Rhe8 {[%emt 0:00:41]} 27. Re4 {[%emt 0:00:49]} Rab8 {[%emt 0:00:54]} 28. Rb3 {[%emt 0:02:39]} Rb6 {[%emt 0:00:32]} 29. Nf5+ {[%emt 0:01:42]} Kf8 {[%emt 0:00:04]} 30. Nxh6 {[%emt 0:01:18]} Reb8 {[%emt 0:00:39]} 31. Ree3 {[%emt 0:00:01]} a5 {[%emt 0:00:30]} 32. Kg3 {[%emt 0:01:19]} a4 {[%emt 0:00:12]} 33. Rxb6 {[%emt 0:00:10]} Rxb6 {[%emt 0:00:00]} 34. h4 {[%emt 0:00:38]} Ne6 {[%emt 0:00:45]} 35. Nf5 {[%emt 0:00:21]} gxh4+ {[%emt 0:00:21]} 36. Kxh4 {[%emt 0:00:12]} Rb4 {[%emt 0:01:02]} 37. Rc3 {[%emt 0:00:20]} c5 {[%emt 0:00:05]} 38. dxc5 {[%emt 0:01:04]} Nxc5 {[%emt 0:00:13]} 39. Rc2 {[%emt 0:00:30]} Nd3 {[%emt 0:01:10]} 40. Kg3 {[%emt 0:00:39]} Ne5 {[%emt 0:00:57]} 41. Ne3 {[%emt 0:05:22]} Nc6 {[%emt 0:02:40]} 42. Rd2 {[%emt 0:01:46]} Ke8 {[%emt 0:15:49]} 43. Rd6 {[%emt 0:01:32]} Nb8 {[%emt 0:00:32]} 44. Rd2 {[%emt 0:11:53]} Rb1 {[%emt 0:01:11]} 45. f4 {[%emt 0:01:57]} Ra1 {[%emt 0:04:12]} 46. f5 {[%emt 0:01:08]} a3 {[%emt 0:01:08]} 47. Nd5 {[%emt 0:03:38]} Kd7 {[%emt 0:01:20]} 48. Nb4+ {[%emt 0:00:40]} Kc7 {[%emt 0:00:30]} 49. Rd3 {[%emt 0:00:13]} Rc1 {[%emt 0:01:42]} 50. Nd5+ {[%emt 0:00:18]} Kc6 {[%emt 0:05:19]} 51. Ne3 {[%emt 0:00:10]} Nd7 {[%emt 0:00:07]} 52. Rxa3 {[%emt 0:00:07]} Nb6 {[%emt 0:00:12]} 53. Ra7 {[%emt 0:00:28]} Nxc4 {[%emt 0:00:42]} 54. Nxc4 {[%emt 0:02:05]} Rxc4 {[%emt 0:00:05]} 55. Rxf7 {[%emt 0:00:04]} Ra4 {[%emt 0:00:05]} 56. Re7 {[%emt 0:00:33]} Rxa2 {[%emt 0:00:42]} 57. f6 {[%emt 0:00:41]} Kd6 {[%emt 0:00:16]} 58. Re8 {[%emt 0:00:19]} 1-0

[Event "NOR-ch Elite 2019"]
[Site "Larvik"]
[Date "2019.07.06"]
[Round "2.10"]
[White "Kaasen, Tor Fredrik"]
[Black "Skrondal, Inge Sandstad"]
[Result "1/2-1/2"]
[ECO "B35"]
[WhiteElo "2376"]
[BlackElo "2312"]
[Annotator "NA"]
[PlyCount "73"]
[EventDate "2019.07.05"]
[EventType "swiss"]
[EventCountry "NOR"]
[SourceTitle "playchess.com"]
[Source "ChessBase"]
[SourceQuality "1"]
[TimeControl "40/5400+30:1800+30"]

1. e4 {[%emt 0:00:00]} c5 {[%emt 0:00:00]} 2. Nf3 {[%emt 0:00:00]} g6 {[%emt 0:00:00]} 3. d4 {[%emt 0:00:16]} Bg7 {[%emt 0:00:00]} 4. Nc3 {[%emt 0:01:12]} cxd4 {[%emt 0:00:18]} 5. Nxd4 {[%emt 0:00:08]} Nc6 {[%emt 0:00:12]} 6. Be3 {[%emt 0:00:07]} Nf6 {[%emt 0:00:06]} 7. Bc4 {[%emt 0:00:05]} O-O {[%emt 0:00:15]} 8. Bb3 {[%emt 0:00:07]} Re8 {[%emt 0:00:09]} 9. f3 {[%emt 0:10:17]} d5 {[%emt 0:00:36]} 10. exd5 {[%emt 0:03:08]} Nb4 {[%emt 0:00:08]} 11. Nde2 {[%emt 0:08:21]} e6 {[%emt 0:00:04]} 12. d6 {[%emt 0:05:54]} Nbd5 {[%emt 0:04:19]} 13. Nxd5 {[%emt 0:08:59]} exd5 {[%emt 0:00:22]} 14. Bd4 {[%emt 0:00:42]} Qxd6 {[%emt 0:00:41]} 15. O-O {[%emt 0:01:43]} Bd7 {[%emt 0:06:34]} 16. Rf2 {[%emt 0:02:58]} Bh6 {[%emt 0:11:50]} 17. Nc3 {[%emt 0:07:32]} Bc6 {[%emt 0:01:41]} 18. Re2 {[%emt 0:02:23]} Nh5 {[%emt 0:09:02]} 19. g3 {[%emt 0:02:43]} a5 {[%emt 0:13:42]} 20. a4 {[%emt 0:01:07]} Ng7 {[%emt 0:10:58]} 21. Qd3 {[%emt 0:04:13]} Ne6 {[%emt 0:05:20]} 22. Rae1 {[%emt 0:10:21]} Nxd4 {[%emt 0:10:41]} 23. Rxe8+ {[%emt 0:00:43]} Rxe8 {[%emt 0:00:17]} 24. Rxe8+ {[%emt 0:00:04]} Bxe8 {[%emt 0:00:05]} 25. Qxd4 {[%emt 0:00:04]} Bg7 {[%emt 0:01:47]} 26. Qd2 {[%emt 0:07:52]} Qc5+ {[%emt 0:01:38]} 27. Kg2 {[%emt 0:00:13]} Bxc3 {[%emt 0:00:12]} 28. Qxc3 {[%emt 0:01:41]} Qxc3 {[%emt 0:00:20]} 29. bxc3 {[%emt 0:00:06]} Bc6 {[%emt 0:06:16]} 30. Kf2 {[%emt 0:00:14]} Kf8 {[%emt 0:00:03]} 31. Ke3 {[%emt 0:00:27]} Ke7 {[%emt 0:00:05]} 32. Kd4 {[%emt 0:02:33]} Kd6 {[%emt 0:00:04]} 33. f4 {[%emt 0:00:09]} f6 {[%emt 0:00:50]} 34. c4 {[%emt 0:00:51]} dxc4 {[%emt 0:00:35]} 35. Kxc4 {[%emt 0:00:04]} g5 {[%emt 0:02:05]} 36. Kd4 {[%emt 0:00:32]} h6 {[%emt 0:01:01]} 37. c3 {[%emt 0:01:59] Kd5+} 1/2-1/2

[Event "NOR-ch Elite 2019"]
[Site "Larvik"]
[Date "2019.07.06"]
[Round "2.11"]
[White "Vitenberg, Noam Aviv"]
[Black "Mihajlov, Sebastian"]
[Result "0-1"]
[ECO "A31"]
[WhiteElo "2300"]
[BlackElo "2375"]
[Annotator "NA"]
[PlyCount "116"]
[EventDate "2019.07.05"]
[EventType "swiss"]
[EventCountry "NOR"]
[SourceTitle "playchess.com"]
[Source "ChessBase"]
[SourceQuality "1"]
[TimeControl "40/5400+30:1800+30"]

1. d4 {[%emt 0:00:00]} Nf6 {[%emt 0:00:00]} 2. c4 {[%emt 0:00:01]} c5 {[%emt 0:00:00]} 3. Nf3 {[%emt 0:02:44]} cxd4 {[%emt 0:00:00]} 4. Nxd4 {[%emt 0:00:22]} Nc6 {[%emt 0:00:00]} 5. Nc3 {[%emt 0:00:38]} Qa5 {[%emt 0:06:04]} 6. Nb3 {[%emt 0:11:46]} Qc7 {[%emt 0:06:32]} 7. Bg5 {[%emt 0:09:40]} d6 {[%emt 0:06:01]} 8. e4 {[%emt 0:09:01]} e6 {[%emt 0:02:59]} 9. Qd2 {[%emt 0:08:56]} a6 {[%emt 0:01:35]} 10. Rd1 {[%emt 0:04:54]} Be7 {[%emt 0:08:09]} 11. Be2 {[%emt 0:06:36]} Ne5 {[%emt 0:08:19]} 12. O-O {[%emt 0:03:17]} Nxc4 {[%emt 0:02:08]} 13. Bxc4 {[%emt 0:02:25]} Qxc4 {[%emt 0:00:05]} 14. Rc1 {[%emt 0:02:33]} Qb4 {[%emt 0:02:19]} 15. Bxf6 {[%emt 0:07:50]} Bxf6 {[%emt 0:00:58]} 16. Nd5 {[%emt 0:02:21]} Qxd2 {[%emt 0:00:06]} 17. Nxf6+ {[%emt 0:00:33]} gxf6 {[%emt 0:00:06]} 18. Nxd2 {[%emt 0:00:05]} b5 {[%emt 0:03:12]} 19. Rc7 {[%emt 0:04:14]} Bd7 {[%emt 0:03:01]} 20. f4 {[%emt 0:05:10]} Kd8 {[%emt 0:03:54]} 21. Rc3 {[%emt 0:03:04]} Ke7 {[%emt 0:00:49]} 22. Nb3 {[%emt 0:04:59]} Rhc8 {[%emt 0:05:53]} 23. Rd3 {[%emt 0:01:41]} Rc4 {[%emt 0:07:42]} 24. Rfd1 {[%emt 0:01:18]} Rxe4 {[%emt 0:00:08]} 25. Rxd6 {[%emt 0:00:22]} Be8 {[%emt 0:00:32]} 26. f5 {[%emt 0:02:07]} Re5 {[%emt 0:02:44]} 27. fxe6 {[%emt 0:00:32]} fxe6 {[%emt 0:00:05]} 28. Rb6 {[%emt 0:00:46]} Ra7 {[%emt 0:05:05]} 29. Na5 {[%emt 0:01:15]} b4 {[%emt 0:03:24]} 30. Nb3 {[%emt 0:02:47]} a5 {[%emt 0:01:01]} 31. Rb8 {[%emt 0:01:13]} Rd7 {[%emt 0:10:16]} 32. Rxd7+ {[%emt 0:00:16]} Bxd7 {[%emt 0:00:04]} 33. Rh8 {[%emt 0:00:13]} h5 {[%emt 0:00:23]} 34. Rh7+ {[%emt 0:00:22]} Kd6 {[%emt 0:00:22]} 35. Rh6 {[%emt 0:00:19]} a4 {[%emt 0:00:51]} 36. Nd4 {[%emt 0:00:12]} Re4 {[%emt 0:01:25]} 37. Nc2 {[%emt 0:02:14]} Bb5 {[%emt 0:01:15]} 38. Rxf6 {[%emt 0:01:05]} b3 {[%emt 0:00:04]} 39. axb3 {[%emt 0:00:57]} axb3 {[%emt 0:00:06]} 40. Na3 {[%emt 0:00:36]} Re1+ {[%emt 0:00:05]} 41. Kf2 {[%emt 0:30:03]} Rf1+ {[%emt 0:30:03]} 42. Ke3 {[%emt 0:00:54]} Rxf6 {[%emt 0:00:06]} 43. Nxb5+ {[%emt 0:00:06]} Kc5 {[%emt 0:00:06]} 44. Nd4 {[%emt 0:00:00]} Kc4 {[%emt 0:00:00]} 45. Nf3 {[%emt 0:00:00]} Rf5 {[%emt 0:00:00]} 46. Ke4 {[%emt 0:00:00]} Rd5 {[%emt 0:00:00]} 47. h3 {[%emt 0:00:00]} h4 {[%emt 0:00:00]} 48. Ke3 {[%emt 0:00:00]} Ra5 {[%emt 0:00:00]} 49. Ke4 {[%emt 0:00:00]} Ra2 {[%emt 0:00:00]} 50. Ne5+ {[%emt 0:00:00]} Kb5 {[%emt 0:00:00]} 51. Nd3 {[%emt 0:00:00]} Ra1 {[%emt 0:00:00]} 52. Ke3 {[%emt 0:00:00]} Kc4 {[%emt 0:00:00]} 53. Ke4 {[%emt 0:00:00]} Rd1 {[%emt 0:00:00]} 54. Ne5+ {[%emt 0:00:00]} Kb5 {[%emt 0:00:00]} 55. Nd3 {[%emt 0:03:15]} Rd2 {[%emt 0:00:00]} 56. Kd4 {[%emt 0:00:41]} Rxg2 {[%emt 0:00:00]} 57. Ke5 {[%emt 0:00:51]} Kc4 {[%emt 0:00:00]} 58. Ke4 {[%emt 0:00:27]} Re2+ {[%emt 0:00:00] Kd4+} 0-1

[Event "NOR-ch Elite 2019"]
[Site "Larvik"]
[Date "2019.07.06"]
[Round "2.12"]
[White "Stokke, Kjetil"]
[Black "Ingebretsen, Jens E"]
[Result "1-0"]
[ECO "E04"]
[WhiteElo "2336"]
[BlackElo "2276"]
[Annotator "NA RC"]
[PlyCount "119"]
[EventDate "2019.07.05"]
[EventType "swiss"]
[EventCountry "NOR"]
[SourceTitle "playchess.com"]
[Source "ChessBase"]
[SourceQuality "1"]
[TimeControl "40/5400+30:1800+30"]

1. d4 {[%emt 0:00:00]} Nf6 {[%emt 0:00:00]} 2. c4 {[%emt 0:00:00]} e6 {[%emt 0:00:00]} 3. g3 {[%emt 0:00:09]} d5 {[%emt 0:00:00]} 4. Nf3 {[%emt 0:00:05]} dxc4 {[%emt 0:00:02]} 5. Bg2 {[%emt 0:00:21]} Nc6 {[%emt 0:00:06]} 6. Qa4 {[%emt 0:00:13]} Nd7 {[%emt 0:00:05]} 7. Qxc4 {[%emt 0:00:12]} Nb6 {[%emt 0:00:05]} 8. Qb5 {[%emt 0:00:31]} a6 {[%emt 0:00:04]} 9. Qd3 {[%emt 0:00:08]} e5 {[%emt 0:00:16]} 10. Nxe5 {[%emt 0:00:41]} Nb4 {[%emt 0:00:04]} 11. Qc3 {[%emt 0:00:23]} Qxd4 {[%emt 0:00:07]} 12. Qxd4 {[%emt 0:00:14]} Nc2+ {[%emt 0:00:06]} 13. Kd1 {[%emt 0:00:10]} Nxd4 {[%emt 0:00:04]} 14. Be3 {[%emt 0:00:08]} Nb5 {[%emt 0:00:04]} 15. Nd2 {[%emt 0:00:06]} Bd6 {[%emt 0:13:05]} 16. Nd3 {[%emt 0:09:12]} Na4 {[%emt 0:08:40]} 17. b3 {[%emt 0:05:43]} Nb6 {[%emt 0:05:05]} 18. a4 {[%emt 0:01:26]} Nc3+ {[%emt 0:00:56]} 19. Kc2 {[%emt 0:00:42]} Ncd5 {[%emt 0:00:41]} 20. Bd4 {[%emt 0:00:38]} Nf6 {[%emt 0:02:49]} 21. e4 {[%emt 0:04:12]} Be7 {[%emt 0:11:49]} 22. e5 {[%emt 0:09:51]} Ng4 {[%emt 0:01:58]} 23. a5 {[%emt 0:01:05]} Nd7 {[%emt 0:01:04]} 24. h3 {[%emt 0:00:58]} Nh6 {[%emt 0:00:16]} 25. g4 {[%emt 0:00:48]} O-O {[%emt 0:03:29]} 26. f4 {[%emt 0:03:09]} Nb8 {[%emt 0:08:13]} 27. f5 {[%emt 0:05:32]} Rd8 {[%emt 0:04:59]} 28. Kc3 {[%emt 0:14:57]} Nc6 {[%emt 0:01:55]} 29. Bxc6 {[%emt 0:00:08]} bxc6 {[%emt 0:00:06]} 30. Ne4 {[%emt 0:02:18]} Rb8 {[%emt 0:08:58]} 31. Bc5 {[%emt 0:02:34]} Bh4 {[%emt 0:02:06]} 32. b4 {[%emt 0:04:52]} Rd5 {[%emt 0:03:59]} 33. Rad1 {[%emt 0:05:56]} Kh8 {[%emt 0:04:31]} 34. Nd2 {[%emt 0:02:30]} Ng8 {[%emt 0:04:00]} 35. Nf3 {[%emt 0:04:48]} Be7 {[%emt 0:01:54]} 36. Kc4 {[%emt 0:09:00]} Bd7 {[%emt 0:08:46]} 37. Bxe7 {[%emt 0:07:34]} Nxe7 {[%emt 0:00:05]} 38. Nc5 {[%emt 0:00:06]} Rd8 {[%emt 0:00:47]} 39. Rxd5 {[%emt 0:01:03]} cxd5+ {[%emt 0:01:36]} 40. Kc3 {[%emt 0:00:09]} Bb5 {[%emt 0:01:44]} 41. Nd4 {[%emt 0:31:23]} Nc6 {[%emt 0:33:25]} 42. Nxc6 {[%emt 0:00:00]} Bxc6 {[%emt 0:00:00]} 43. Kd4 {[%emt 0:00:00]} Bb5 {[%emt 0:00:00]} 44. Re1 {[%emt 0:00:00]} Kg8 {[%emt 0:00:00]} 45. e6 {[%emt 0:00:00]} Bc4 {[%emt 0:00:00]} 46. e7 {[%emt 0:00:00]} Re8 {[%emt 0:00:00]} 47. g5 {[%emt 0:00:00]} f6 {[%emt 0:00:00]} 48. g6 {[%emt 0:00:00]} hxg6 {[%emt 0:00:00]} 49. fxg6 {[%emt 0:00:00]} f5 {[%emt 0:00:00]} 50. Re5 {[%emt 0:00:00]} f4 {[%emt 0:00:00]} 51. h4 {[%emt 0:00:00]} Bb5 {[%emt 0:00:00]} 52. h5 {[%emt 0:00:00]} f3 {[%emt 0:00:00]} 53. Ke3 {[%emt 0:00:00]} Be2 {[%emt 0:00:00]} 54. Nb3 {[%emt 0:00:00]} Bd1 {[%emt 0:00:00]} 55. Nd4 {[%emt 0:00:00]} Ba4 {[%emt 0:00:00]} 56. Kxf3 {[%emt 0:00:00]} Kh8 {[%emt 0:00:00]} 57. b5 {[%emt 0:00:55]} axb5 {[%emt 0:00:00]} 58. Rxd5 {[%emt 0:00:07]} b4 {[%emt 0:00:00]} 59. Rd8 {[%emt 0:00:05]} c5 {[%emt 0:00:00]} 60. a6 {[%emt 0:00:48]} 1-0